fUSD/lending_fUSD_20251221
["ID","MTS","AMOUNT","RATE_DAILY","PERIOD"]
[399346874,1766315491209,-1219.28,0.00039452,2]
[399346875,1766315491217,-1219.28,0.00039452,2]
[399346876,1766315491226,-1219.28,0.00039452,2]
[399346877,1766315491235,-1219.28,0.00039452,2]
[399346878,1766315491244,-1219.28,0.00039452,2]
[399346879,1766315491253,-1219.28,0.00039452,2]
[399346880,1766315491262,-1219.28,0.00039452,2]
[399346881,1766315491272,-1219.28,0.00039452,2]
[399346882,1766315491281,-1554.23,0.00039452,2]
[399346883,1766315491290,-1003.529,0.00039512,14]
[399346884,1766315491299,-959.0,0.00039589,120]
[399346885,1766315491308,-1000.0,0.00039654,2]
[399346886,1766315491316,-994.34,0.000397,14]
[399346887,1766315491325,-1000.0,0.00039725,30]
[399346888,1766315491334,-959.0,0.00039726,120]
[399346889,1766315491344,-959.0,0.00039863,120]
[399346890,1766315491353,-150.0,0.00039892,7]
[399346891,1766315491362,-1000.0,0.00039897,30]
[399346892,1766315491372,-888.3112203,0.000399,120]
[399346893,1766315491383,-888.31122019,0.000399,120]
[399346894,1766315491392,-888.31122019,0.000399,120]
[399346895,1766315491402,-888.31122019,0.000399,120]
[399346896,1766315491411,-888.31122019,0.000399,120]
[399346897,1766315491421,-888.31122019,0.000399,120]
[399346898,1766315491430,-888.31122019,0.000399,120]
[399346899,1766315491439,-888.31122019,0.000399,120]
[399346900,1766315491449,-888.31122019,0.000399,120]
[399346901,1766315491458,-888.31122019,0.000399,120]
[399346902,1766315491467,-888.31122019,0.000399,120]
[399346903,1766315491476,-888.31122019,0.000399,120]
[399346904,1766315491485,-888.31122019,0.000399,120]
[399346905,1766315491494,-888.31122019,0.000399,120]
[399346906,1766315491503,-888.31122019,0.000399,120]
[399346907,1766315491512,-80351.41106793,0.0003998,2]
[399346908,1766315491521,-8039.92499822,0.00039999,2]
[399346909,1766315491530,-1000.0,0.00039999,14]
[399346910,1766315491540,-3000.0,0.00039999,14]
[399346911,1766315491549,-2000.0,0.00039999,14]
[399346912,1766315491558,-1000.0,0.00039999,30]
[399346913,1766315491567,-1000.0,0.00039999,30]
[399346914,1766315491576,-388.7740525,0.00039999,15]
[399346915,1766315491585,-450.19092478,0.00039999,7]
[399346916,1766315491594,-165.53963582,0.00039999,31]
[399346917,1766315491603,-432.97523141,0.00039999,31]
[399346918,1766315491612,-523.47114834,0.00039999,31]
[399346919,1766315491621,-500.0,0.00039999,31]
[399346920,1766315491630,-501.66274549,0.00039999,31]
[399346921,1766315491639,-500.0,0.00039999,31]
[399346922,1766315491648,-626.51176979,0.00039999,31]
[399346923,1766315491657,-273.24389591,0.00039999,15]
[399346924,1766315491666,-500.0,0.00039999,31]
[399346925,1766315491674,-489.80242021,0.00039999,31]
[399346926,1766315491683,-273.38866728,0.00039999,7]
[399346927,1766315491692,-500.0,0.00039999,15]
[399346928,1766315491701,-300.0,0.00039999,31]
[399346929,1766315491710,-500.0,0.00039999,31]
[399346930,1766315491719,-500.0,0.00039999,31]
[399346931,1766315491728,-1091.99764062,0.00039999,31]
[399346932,1766315491737,-1091.99764062,0.00039999,31]
[399346933,1766315491747,-500.0,0.00039999,31]
[399346934,1766315491756,-1091.99764062,0.00039999,31]
[399346935,1766315491765,-277.35744534,0.00039999,31]
[399346936,1766315491774,-1091.99764062,0.00039999,31]
[399346937,1766315491783,-1091.99764062,0.00039999,31]
[399346938,1766315491792,-1091.99764062,0.00039999,31]
[399346939,1766315491801,-1091.99764062,0.00039999,31]
[399346940,1766315491810,-1091.99764062,0.00039999,31]
[399346941,1766315491819,-959.0,0.0004,120]
[399346942,1766315491828,-420.70934513,0.0004,7]
[399346943,1766315491837,-5099.59306654,0.0004,10]
[399346944,1766315491846,-5000.0,0.0004,3]
[399346945,1766315491856,-976.43872356,0.0004,7]
[399346946,1766315491866,-500.0,0.0004,7]
[399346947,1766315491875,-10607.46877676,0.0004,2]
[399346948,1766315492027,-163.6058897,0.0004,5]
[399346949,1766315492037,-1000.0,0.0004,18]
[399346950,1766315492046,-2000.0,0.0004,21]
[399346951,1766315492055,-160.38957028,0.0004,2]
[399346952,1766315492065,-3000.0,0.0004,5]
[399346953,1766315492075,-1436.85,0.0004,7]
[399346954,1766315492084,-2102.53362974,0.0004,4]
[399346955,1766315492093,-500.0,0.0004,25]
[399346956,1766315492103,-67324.45758059,0.0004,2]
[399346957,1766315492112,-3759.0,0.0004,12]
[399346958,1766315492121,-387.6013396,0.0004,2]
[399346959,1766315492130,-1548.99560878,0.0004,2]
[399346960,1766315492139,-217.23248466,0.0004,2]
[399346961,1766315492148,-526.0,0.0004,2]
[399346962,1766315492157,-312.57890019,0.0004,2]
[399346963,1766315492167,-200.27581076,0.0004,2]
[399346964,1766315492176,-4656.94586737,0.0004,14]
[399346965,1766315492185,-4542.42118052,0.0004,10]
[399346966,1766315492194,-5000.10697675,0.0004,10]
[399346967,1766315492203,-936.70829502,0.0004,2]
[399346968,1766315492212,-157.99927476,0.0004,20]
[399346969,1766315492221,-176.13418941,0.0004,2]
[399346970,1766315492231,-711000.0,0.0004,2]
[399346971,1766315492240,-44990.10201407,0.0004,2]
[399346972,1766315492249,-500.0,0.0004,120]
[399346973,1766315492259,-284.8,0.0004,30]
[399346974,1766315492268,-1000.0,0.0004001,30]
[399346976,1766315492278,-150.04,0.00040111,120]
[399346977,1766315492287,-150.04,0.00040111,120]
[399346978,1766315492296,-150.04,0.00040111,120]
[399346979,1766315492305,-150.04,0.00040111,120]
[399346980,1766315492315,-150.04,0.00040111,120]
[399346981,1766315492324,-150.04,0.00040111,120]
[399346982,1766315492333,-150.04,0.00040111,120]
[399346983,1766315492342,-150.04,0.00040111,120]
[399346984,1766315492352,-150.04,0.00040111,120]
[399346985,1766315492361,-150.04,0.00040111,120]
[399346986,1766315492371,-959.0,0.00040137,120]
[399346987,1766315492383,-959.0,0.00040274,120]
[399346988,1766315492392,-1000.0,0.00040409,30]
[399346989,1766315492401,-959.0,0.00040411,120]
[399346990,1766315492410,-150.0,0.00040421,7]
[399346991,1766315492421,-150.0,0.00040424,7]
[399346992,1766315492430,-1000.0,0.0004043,7]
[399346993,1766315492440,-1000.0,0.00040468,7]
[399346994,1766315492449,-1000.0,0.0004047,7]
[399346995,1766315492458,-994.34,0.000405,14]
[399346996,1766315492468,-150.0,0.00040534,7]
[399346997,1766315492477,-12396.34,0.00040547,120]
[399346998,1766315492486,-959.0,0.00040548,120]
[399346999,1766315492495,-1000.0,0.00040575,7]
[399347000,1766315492505,-150.0,0.0004059,7]
[399347001,1766315492513,-1000.0,0.00040667,7]
[399347002,1766315492522,-1000.0,0.00040673,7]
[399347003,1766315492531,-959.0,0.00040685,120]
[399347004,1766315492541,-926.45060488,0.0004069,2]
[399347005,1766315492550,-1000.0,0.00040693,7]
[399347006,1766315492559,-1000.0,0.00040699,30]
[399347007,1766315492568,-1000.0,0.00040718,7]
[399347009,1766315492576,-1000.0,0.00040783,7]
[399347010,1766315492585,-1000.0,0.00040817,7]
[399347011,1766315492595,-1000.0,0.00040821,14]
[399347012,1766315492604,-3000.0,0.00040821,14]
[399347013,1766315492612,-2000.0,0.00040821,14]
[399347014,1766315492622,-959.0,0.00040822,120]
[399347015,1766315492631,-1000.0,0.00040834,7]
[399347016,1766315492640,-1000.0,0.0004089,7]
[399347017,1766315492649,-705.32,0.00040896,30]
[399347018,1766315492658,-1000.0,0.00040932,7]
[399347019,1766315492668,-1000.0,0.0004095,7]
[399347020,1766315492677,-959.0,0.00040959,120]
[399347021,1766315492686,-6310.15856598,0.00040998,2]
[399347022,1766315492695,-1000.0,0.00040999,30]
[399347023,1766315492704,-1000.0,0.00040999,30]
[399347024,1766315492713,-1000.0,0.00040999,30]
[399347025,1766315492722,-1000.0,0.00040999,30]
[399347026,1766315492731,-43000.0,0.00041,21]
[399347027,1766315492740,-152.69055732,0.00041,3]
[399347028,1766315492749,-154.03908778,0.00041,10]
[399347029,1766315492758,-231.9,0.00041,2]
[399347030,1766315492768,-13457.22,0.00041,2]
[399347031,1766315492777,-150.0,0.00041,23]
[399347032,1766315492786,-3000.0,0.00041,120]
[399347033,1766315492794,-490.0,0.00041,90]
[399347034,1766315492804,-253.0,0.00041,34]
[399347035,1766315492813,-25000.0,0.00041,30]
[399347036,1766315492822,-150.0,0.00041,37]
[399347037,1766315492831,-1000.0,0.00041017,7]
[399347038,1766315492839,-1000.0,0.00041024,7]
[399347039,1766315492848,-1000.0,0.00041034,7]
[399347040,1766315492857,-300.0,0.00041068,22]
[399347042,1766315492866,-400.0,0.0004107,3]
[399347043,1766315492875,-400.0,0.0004107,3]
[399347044,1766315492884,-683.0,0.0004109,60]
[399347045,1766315492892,-1000.0,0.00041093,7]
[399347046,1766315492901,-1000.0,0.00041094,30]
[399347047,1766315492910,-1000.0,0.00041095,2]
[399347048,1766315492918,-1000.0,0.00041095,2]
[399347049,1766315492927,-1000.0,0.00041095,2]
[399347050,1766315492936,-1000.0,0.00041095,2]
[399347051,1766315492945,-1000.0,0.00041095,2]
[399347052,1766315492954,-1000.0,0.00041095,2]
[399347053,1766315492963,-1000.0,0.00041095,2]
[399347054,1766315492973,-1000.0,0.00041095,2]
[399347055,1766315492982,-815.05,0.00041095,5]
[399347056,1766315492991,-815.05,0.00041095,5]
[399347057,1766315493000,-815.05,0.00041095,5]
[399347058,1766315493009,-815.05,0.00041095,5]
[399347059,1766315493018,-815.05,0.00041095,5]
[399347060,1766315493027,-815.05,0.00041095,5]
[399347061,1766315493036,-815.05,0.00041095,5]
[399347062,1766315493045,-815.05,0.00041095,5]
[399347063,1766315493054,-500.24720301,0.00041095,2]
[399347064,1766315493063,-500.0,0.00041095,2]
[399347065,1766315493072,-505.89811821,0.00041095,2]
[399347066,1766315493081,-646.42,0.00041095,14]
[399347067,1766315493090,-646.42,0.00041095,14]
[399347068,1766315493099,-646.42,0.00041095,14]
[399347069,1766315493108,-646.42,0.00041095,14]
[399347070,1766315493117,-646.42,0.00041095,14]
[399347071,1766315493125,-646.42,0.00041095,14]
[399347072,1766315493134,-646.42,0.00041095,14]
[399347073,1766315493143,-646.42,0.00041095,14]
[399347075,1766315493152,-646.42,0.00041095,14]
[399347076,1766315493161,-646.42,0.00041095,14]
[399347077,1766315493170,-646.42,0.00041095,14]
[399347078,1766315493179,-646.42,0.00041095,14]
[399347079,1766315493188,-646.42,0.00041095,14]
[399347080,1766315493197,-646.42,0.00041095,14]
[399347081,1766315493206,-646.42,0.00041095,14]
[399347082,1766315493215,-646.42,0.00041095,14]
[399347083,1766315493224,-646.42,0.00041095,14]
[399347084,1766315493234,-646.42,0.00041095,14]
[399347085,1766315493244,-646.42,0.00041095,14]
[399347086,1766315493252,-646.42,0.00041095,14]
[399347087,1766315493262,-646.42,0.00041095,14]
[399347088,1766315493271,-646.42,0.00041095,14]
[399347089,1766315493280,-646.42,0.00041095,14]
[399347090,1766315493289,-646.50478083,0.00041095,14]
[399347091,1766315493298,-500.0,0.00041095,14]
[399347092,1766315493306,-500.0,0.00041095,14]
[399347093,1766315493315,-500.0,0.00041095,14]
[399347094,1766315493324,-500.0,0.00041095,14]
[399347095,1766315493332,-343.46848694,0.00041095,14]
[399347096,1766315493341,-500.0,0.00041095,12]
[399347097,1766315493350,-500.0,0.00041095,12]
[399347098,1766315493359,-500.0,0.00041095,12]
[399347099,1766315493368,-500.0,0.00041095,12]
[399347100,1766315493385,-500.0,0.00041095,12]
[399347101,1766315493394,-500.0,0.00041095,12]
[399347102,1766315493405,-500.0,0.00041095,12]
[399347103,1766315493414,-500.0,0.00041095,12]
[399347104,1766315493426,-500.0,0.00041095,12]
[399347105,1766315493435,-501.28230653,0.00041095,12]
[399347106,1766315493445,-500.0,0.00041095,14]
[399347107,1766315493456,-512.39451174,0.00041095,14]
[399347108,1766315493465,-574.34,0.00041095,10]
[399347109,1766315493474,-574.34,0.00041095,10]
[399347110,1766315493483,-574.34,0.00041095,10]
[399347111,1766315493492,-574.34,0.00041095,10]
[399347112,1766315493501,-574.34,0.00041095,10]
[399347113,1766315493510,-574.34,0.00041095,10]
[399347114,1766315493519,-574.34,0.00041095,10]
[399347115,1766315493529,-574.34,0.00041095,10]
[399347116,1766315493538,-574.34,0.00041095,10]
[399347117,1766315493547,-574.34,0.00041095,10]
[399347118,1766315493556,-574.34,0.00041095,10]
[399347119,1766315493565,-574.34,0.00041095,10]
[399347120,1766315493574,-574.34,0.00041095,10]
[399347121,1766315493583,-574.34,0.00041095,10]
[399347122,1766315493592,-574.34,0.00041095,10]
[399347123,1766315493601,-574.34,0.00041095,10]
[399347124,1766315493610,-574.34,0.00041095,10]
[399347125,1766315493619,-574.34,0.00041095,10]
[399347126,1766315493628,-574.34,0.00041095,10]
[399347127,1766315493637,-574.34,0.00041095,10]
[399347128,1766315493646,-574.34,0.00041095,10]
[399347129,1766315493655,-574.34,0.00041095,10]
[399347130,1766315493663,-574.34,0.00041095,10]
[399347131,1766315493673,-574.36440377,0.00041095,10]
[399347132,1766315493682,-500.0,0.00041095,14]
[399347133,1766315493691,-500.0,0.00041095,14]
[399347134,1766315493700,-500.0,0.00041095,14]
[399347135,1766315493709,-500.0,0.00041095,14]
[399347136,1766315493718,-500.0,0.00041095,14]
[399347137,1766315493727,-500.0,0.00041095,14]
[399347138,1766315493736,-500.0,0.00041095,14]
[399347139,1766315493745,-500.0,0.00041095,14]
[399347140,1766315493754,-500.0,0.00041095,14]
[399347141,1766315493763,-500.0,0.00041095,14]
[399347142,1766315493772,-500.0,0.00041095,14]
[399347144,1766315493782,-599.45617041,0.00041095,14]
[399347145,1766315493790,-500.0,0.00041095,16]
[399347146,1766315493799,-500.0,0.00041095,16]
[399347147,1766315493808,-500.0,0.00041095,16]
[399347148,1766315493817,-500.0,0.00041095,16]
[399347149,1766315493825,-500.0,0.00041095,16]
[399347150,1766315493834,-500.0,0.00041095,16]
[399347151,1766315493844,-500.0,0.00041095,16]
[399347152,1766315493853,-500.0,0.00041095,16]
[399347153,1766315493862,-500.0,0.00041095,16]
[399347154,1766315493871,-500.0,0.00041095,16]
[399347155,1766315493882,-445.13923162,0.00041095,16]
[399347156,1766315493891,-501.12230996,0.00041095,7]
[399347157,1766315493900,-500.0,0.00041095,7]
[399347158,1766315493909,-168.45306594,0.00041095,7]
[399347159,1766315493918,-500.0,0.00041095,2]
[399347160,1766315493927,-500.0,0.00041095,2]
[399347161,1766315493936,-500.0,0.00041095,2]
[399347162,1766315493945,-500.0,0.00041095,2]
[399347163,1766315493954,-500.0,0.00041095,2]
[399347164,1766315493963,-500.0,0.00041095,2]
[399347165,1766315493972,-500.0,0.00041095,2]
[399347166,1766315493981,-500.0,0.00041095,2]
[399347167,1766315493990,-500.0,0.00041095,2]
[399347168,1766315493999,-500.0,0.00041095,2]
[399347169,1766315494008,-500.0,0.00041095,2]
[399347170,1766315494016,-482.26053294,0.00041095,2]
[399347171,1766315494025,-500.14853871,0.00041095,2]
[399347172,1766315494034,-631.93626989,0.00041095,2]
[399347173,1766315494044,-500.0,0.00041095,2]
[399347174,1766315494053,-500.0,0.00041095,2]
[399347175,1766315494063,-500.0,0.00041095,2]
[399347176,1766315494071,-410.85367845,0.00041095,2]
[399347178,1766315494080,-2000.0,0.00041095,7]
[399347179,1766315494090,-2000.0,0.00041095,7]
[399347180,1766315494099,-2000.0,0.00041095,7]
[399347181,1766315494108,-2000.0,0.00041095,7]
[399347182,1766315494117,-2000.0,0.00041095,7]
[399347183,1766315494126,-2000.0,0.00041095,7]
[399347184,1766315494135,-2000.0,0.00041095,7]
[399347185,1766315494145,-2000.0,0.00041095,7]
[399347186,1766315494154,-2000.0,0.00041095,7]
[399347187,1766315494163,-2000.0,0.00041095,7]
[399347188,1766315494171,-2000.0,0.00041095,7]
[399347189,1766315494181,-2000.0,0.00041095,7]
[399347190,1766315494190,-2000.0,0.00041095,7]
[399347191,1766315494199,-2000.0,0.00041095,7]
[399347192,1766315494207,-2000.0,0.00041095,7]
[399347193,1766315494216,-2000.0,0.00041095,7]
[399347194,1766315494225,-2000.0,0.00041095,7]
[399347195,1766315494234,-2000.0,0.00041095,7]
[399347196,1766315494243,-855.68874304,0.00041095,7]
[399347197,1766315494252,-517.28281867,0.00041095,5]
[399347198,1766315494262,-500.0,0.00041095,2]
[399347199,1766315494271,-500.0,0.00041095,2]
[399347200,1766315494280,-500.0,0.00041095,2]
[399347201,1766315494289,-500.0,0.00041095,2]
[399347202,1766315494298,-500.0,0.00041095,2]
[399347203,1766315494306,-500.0,0.00041095,2]
[399347204,1766315494315,-500.0,0.00041095,2]
[399347205,1766315494324,-500.0,0.00041095,2]
[399347206,1766315494334,-500.0,0.00041095,2]
[399347207,1766315494343,-500.0,0.00041095,2]
[399347208,1766315494352,-500.0,0.00041095,2]
[399347209,1766315494361,-500.0,0.00041095,2]
[399347211,1766315494370,-500.0,0.00041095,2]
[399347212,1766315494384,-500.0,0.00041095,2]
[399347213,1766315494394,-513.60162889,0.00041095,2]
[399347214,1766315494403,-2000.0,0.00041095,7]
[399347215,1766315494413,-1034.97621008,0.00041095,7]
[399347216,1766315494423,-500.0,0.00041095,14]
[399347217,1766315494432,-221.4138693,0.00041095,14]
[399347218,1766315494441,-500.0,0.00041095,2]
[399347219,1766315494452,-498.66604395,0.00041095,2]
[399347220,1766315494461,-1000.0,0.00041095,2]
[399347221,1766315494470,-1095.65209732,0.00041095,2]
[399347222,1766315494479,-500.0,0.00041095,5]
[399347223,1766315494490,-500.0,0.00041095,2]
[399347224,1766315494499,-500.79930706,0.00041095,2]
[399347225,1766315494508,-500.30482366,0.00041095,2]
[399347226,1766315494517,-1000.0,0.00041095,2]
[399347227,1766315494526,-1000.0,0.00041095,2]
[399347228,1766315494535,-1000.0,0.00041095,2]
[399347229,1766315494544,-1000.0,0.00041095,2]
[399347230,1766315494553,-1000.0,0.00041095,2]
[399347231,1766315494562,-1000.0,0.00041095,2]
[399347232,1766315494571,-1000.0,0.00041095,2]
[399347233,1766315494580,-1000.0,0.00041095,2]
[399347234,1766315494590,-1000.0,0.00041095,2]
[399347235,1766315494599,-1000.0,0.00041095,2]
[399347236,1766315494608,-1000.0,0.00041095,2]
[399347237,1766315494617,-1000.0,0.00041095,2]
[399347238,1766315494626,-1000.0,0.00041095,2]
[399347239,1766315494634,-1000.0,0.00041095,2]
[399347240,1766315494643,-1000.0,0.00041095,2]
[399347241,1766315494653,-1000.0,0.00041095,2]
[399347242,1766315494662,-1000.0,0.00041095,2]
[399347244,1766315494671,-767.33409098,0.00041095,2]
[399347245,1766315494680,-377.35230537,0.00041095,120]
[399347246,1766315494689,-500.0,0.00041095,120]
[399347247,1766315494698,-500.0,0.00041095,120]
[399347248,1766315494709,-500.0,0.00041095,120]
[399347249,1766315494718,-500.0,0.00041095,120]
[399347250,1766315494727,-500.0,0.00041095,120]
[399347251,1766315494737,-500.0,0.00041095,120]
[399347252,1766315494745,-372.98548647,0.00041095,120]
[399347253,1766315494754,-500.0,0.00041095,120]
[399347254,1766315494763,-500.0,0.00041095,120]
[399347255,1766315494772,-500.0,0.00041095,120]
[399347256,1766315494781,-500.0,0.00041095,120]
[399347257,1766315494790,-500.0,0.00041095,120]
[399347258,1766315494799,-500.0,0.00041095,120]
[399347259,1766315494808,-500.0,0.00041095,120]
[399347260,1766315494817,-500.0,0.00041095,120]
[399347261,1766315494826,-500.0,0.00041095,120]
[399347262,1766315494835,-598.46,0.00041095,120]
[399347263,1766315494844,-500.0,0.00041095,120]
[399347264,1766315494853,-500.0,0.00041095,120]
[399347265,1766315494862,-500.0,0.00041095,120]
[399347266,1766315494871,-598.46,0.00041095,120]
[399347267,1766315494880,-500.0,0.00041095,120]
[399347268,1766315494889,-500.0,0.00041095,120]
[399347269,1766315494898,-500.0,0.00041095,120]
[399347270,1766315494907,-641.32159544,0.00041095,120]
[399347271,1766315494915,-387.13792717,0.00041095,120]
[399347272,1766315494924,-598.46,0.00041095,120]
[399347273,1766315494933,-500.0,0.00041095,120]
[399347274,1766315494942,-500.0,0.00041095,120]
[399347275,1766315494951,-500.0,0.00041095,120]
[399347276,1766315494960,-598.46,0.00041095,120]
[399347277,1766315494969,-500.0,0.00041095,120]
[399347278,1766315494978,-242.96582345,0.00041095,120]
[399347279,1766315494987,-500.0,0.00041095,120]
[399347280,1766315494996,-598.46,0.00041095,120]
[399347281,1766315495004,-288.4,0.00041095,120]
[399347282,1766315495013,-500.0,0.00041095,120]
[399347283,1766315495023,-598.46,0.00041095,120]
[399347284,1766315495032,-500.0,0.00041095,120]
[399347285,1766315495040,-598.46,0.00041095,120]
[399347286,1766315495049,-508.37086809,0.00041095,120]
[399347287,1766315495058,-598.46,0.00041095,120]
[399347288,1766315495068,-598.46,0.00041095,120]
[399347289,1766315495079,-598.46,0.00041095,120]
[399347290,1766315495087,-598.46,0.00041095,120]
[399347291,1766315495096,-598.46,0.00041095,120]
[399347292,1766315495106,-598.46,0.00041095,120]
[399347293,1766315495117,-598.46,0.00041095,120]
[399347294,1766315495131,-598.46,0.00041095,120]
[399347295,1766315495140,-598.46,0.00041095,120]
[399347296,1766315495149,-452.77542246,0.00041095,120]
[399347297,1766315495158,-598.46,0.00041095,120]
[399347298,1766315495167,-598.46,0.00041095,120]
[399347299,1766315495175,-598.46,0.00041095,120]
[399347300,1766315495185,-598.46,0.00041095,120]
[399347301,1766315495194,-598.46,0.00041095,120]
[399347302,1766315495203,-598.46,0.00041095,120]
[399347303,1766315495212,-598.46,0.00041095,120]
[399347304,1766315495221,-1007.52,0.00041095,120]
[399347305,1766315495230,-598.69,0.00041095,120]
[399347306,1766315495240,-1007.52,0.00041095,120]
[399347307,1766315495249,-500.0,0.00041095,120]
[399347308,1766315495259,-1007.52,0.00041095,120]
[399347309,1766315495268,-500.0,0.00041095,120]
[399347311,1766315495278,-1007.52,0.00041095,120]
[399347312,1766315495287,-500.0,0.00041095,120]
[399347313,1766315495296,-1007.52,0.00041095,120]
[399347314,1766315495305,-500.0,0.00041095,120]
[399347315,1766315495315,-1007.52,0.00041095,120]
[399347316,1766315495324,-500.0,0.00041095,120]
[399347317,1766315495333,-1007.52,0.00041095,120]
[399347318,1766315495342,-500.0,0.00041095,120]
[399347319,1766315495351,-500.0,0.00041095,120]
[399347320,1766315495360,-1007.52,0.00041095,120]
[399347321,1766315495370,-500.0,0.00041095,120]
[399347322,1766315495383,-500.0,0.00041095,120]
[399347323,1766315495393,-1007.52,0.00041095,120]
[399347324,1766315495402,-500.0,0.00041095,120]
[399347325,1766315495412,-500.0,0.00041095,120]
[399347326,1766315495422,-500.0,0.00041095,120]
[399347327,1766315495431,-1007.52,0.00041095,120]
[399347328,1766315495440,-500.0,0.00041095,120]
[399347329,1766315495450,-500.0,0.00041095,120]
[399347330,1766315495463,-500.0,0.00041095,120]
[399347331,1766315495472,-500.0,0.00041095,120]
[399347332,1766315495481,-1007.52,0.00041095,120]
[399347333,1766315495492,-500.0,0.00041095,120]
[399347334,1766315495502,-500.0,0.00041095,120]
[399347335,1766315495511,-500.0,0.00041095,120]
[399347336,1766315495520,-500.0,0.00041095,120]
[399347337,1766315495529,-1007.52,0.00041095,120]
[399347338,1766315495538,-295.75659788,0.00041095,120]
[399347339,1766315495547,-500.0,0.00041095,120]
[399347340,1766315495556,-500.0,0.00041095,120]
[399347341,1766315495565,-500.0,0.00041095,120]
[399347343,1766315495575,-500.0,0.00041095,120]
[399347344,1766315495583,-2898.06,0.00041095,120]
[399347345,1766315495593,-1007.52,0.00041095,120]
[399347346,1766315495602,-500.0,0.00041095,120]
[399347347,1766315495611,-448.91,0.00041095,120]
[399347348,1766315495620,-321.71273834,0.00041095,120]
[399347349,1766315495629,-500.0,0.00041095,120]
[399347350,1766315495638,-2898.06,0.00041095,120]
[399347351,1766315495647,-1007.52,0.00041095,120]
[399347352,1766315495656,-500.0,0.00041095,120]
[399347353,1766315495665,-500.0,0.00041095,120]
[399347354,1766315495674,-500.0,0.00041095,120]
[399347355,1766315495683,-1007.52,0.00041095,120]
[399347356,1766315495692,-500.0,0.00041095,120]
[399347357,1766315495701,-500.0,0.00041095,120]
[399347358,1766315495710,-500.0,0.00041095,120]
[399347359,1766315495719,-2898.06,0.00041095,120]
[399347360,1766315495729,-1007.52,0.00041095,120]
[399347361,1766315495739,-500.0,0.00041095,120]
[399347362,1766315495748,-500.0,0.00041095,120]
[399347363,1766315495757,-500.0,0.00041095,120]
[399347364,1766315495766,-2898.06,0.00041095,120]
[399347365,1766315495775,-1007.52,0.00041095,120]
[399347366,1766315495784,-500.0,0.00041095,120]
[399347367,1766315495793,-500.0,0.00041095,120]
[399347368,1766315495803,-514.80136863,0.00041095,120]
[399347369,1766315495812,-2898.06,0.00041095,120]
[399347370,1766315495822,-1007.52,0.00041095,120]
[399347371,1766315495831,-500.0,0.00041095,120]
[399347372,1766315495841,-500.0,0.00041095,120]
[399347373,1766315495850,-2898.06,0.00041095,120]
[399347374,1766315495861,-1007.52,0.00041095,120]
[399347375,1766315495871,-500.0,0.00041095,120]
[399347376,1766315495880,-500.0,0.00041095,120]
[399347377,1766315495890,-2898.06,0.00041095,120]
[399347378,1766315495899,-1007.52,0.00041095,120]
[399347379,1766315495909,-500.0,0.00041095,120]
[399347380,1766315495919,-500.0,0.00041095,120]
[399347381,1766315495928,-2898.06,0.00041095,120]
[399347382,1766315495937,-1007.52,0.00041095,120]
[399347383,1766315495947,-500.0,0.00041095,120]